[Event "Titled Tuesday Blitz January 25 2022"]
[White "Postnikov, Daniil"]
[Black "Efremova, Yulia"]
[WhiteFideId "4166329"]
[BlackFideId "14113953"]
[WhiteElo "2261"]
[BlackElo "2107"]
[Result "1-0"]
[Round "09"]
[TimeControl "180+1"]
[Date "2022.01.26"]
[WhiteClock "0:00:45"]
[BlackClock "0:00:14"]

1. e4 {[%clk 0:02:55]}  d5 {[%clk 0:02:58]} 2. exd5 {[%clk 0:02:50]}  Qxd5 {[%clk 0:02:59]} 3. Nc3 {[%clk 0:02:51]}  Qa5 {[%clk 0:02:59]} 4. d4 {[%clk 0:02:46]}  Nf6 {[%clk 0:02:59]} 5. Nf3 {[%clk 0:02:42]}  Bg4 {[%clk 0:02:59]} 6. Bc4 {[%clk 0:02:42]}  Nc6 {[%clk 0:02:59]} 7. Be3 {[%clk 0:02:33]}  O-O-O {[%clk 0:02:59]} 8. Bxf7 {[%clk 0:02:28]}  e6 {[%clk 0:02:50]} 9. h3 {[%clk 0:02:29]}  Bf5 {[%clk 0:02:35]} 10. g4 {[%clk 0:02:27]}  Nxg4 {[%clk 0:02:35]} 11. hxg4 {[%clk 0:02:28]}  Bxg4 {[%clk 0:02:36]} 12. Rh4 {[%clk 0:02:01]}  Qf5 {[%clk 0:02:25]} 13. Rxg4 {[%clk 0:01:59]}  Qxg4 {[%clk 0:02:24]} 14. Ng5 {[%clk 0:01:59]}  Qg1+ {[%clk 0:01:24]} 15. Ke2 {[%clk 0:01:54]}  Qg4+ {[%clk 0:01:22]} 16. f3 {[%clk 0:01:54]}  Qg2+ {[%clk 0:01:18]} 17. Ke1 {[%clk 0:01:49]}  Bd6 {[%clk 0:01:13]} 18. Bxe6+ {[%clk 0:01:42]}  Kb8 {[%clk 0:01:13]} 19. Qe2 {[%clk 0:01:42]}  Bg3+ {[%clk 0:01:09]} 20. Kd2 {[%clk 0:01:42]}  Qxe2+ {[%clk 0:01:02]} 21. Kxe2 {[%clk 0:01:43]}  Rhe8 {[%clk 0:00:57]} 22. d5 {[%clk 0:01:42]}  Nb4 {[%clk 0:00:53]} 23. Nf7 {[%clk 0:01:36]}  Nxc2 {[%clk 0:00:53]} 24. Rg1 {[%clk 0:01:29]}  Bd6 {[%clk 0:00:38]} 25. Nxd8 {[%clk 0:01:27]}  Rxd8 {[%clk 0:00:39]} 26. Rxg7 {[%clk 0:01:24]}  h5 {[%clk 0:00:38]} 27. Ne4 {[%clk 0:01:23]}  Be5 {[%clk 0:00:37]} 28. Rh7 {[%clk 0:01:23]}  Bxb2 {[%clk 0:00:37]} 29. Rxh5 {[%clk 0:01:16]}  Nxe3 {[%clk 0:00:29]} 30. Kxe3 {[%clk 0:01:16]}  Bc1+ {[%clk 0:00:28]} 31. Ke2 {[%clk 0:01:16]}  a5 {[%clk 0:00:26]} 32. Rh7 {[%clk 0:01:14]}  Bf4 {[%clk 0:00:25]} 33. Rf7 {[%clk 0:01:13]}  Be5 {[%clk 0:00:21]} 34. f4 {[%clk 0:01:13]}  Bb2 {[%clk 0:00:21]} 35. f5 {[%clk 0:01:13]}  b5 {[%clk 0:00:21]} 36. Rd7 {[%clk 0:01:06]}  Rf8 {[%clk 0:00:20]} 37. Kf3 {[%clk 0:01:00]}  b4 {[%clk 0:00:20]} 38. d6 {[%clk 0:00:57]}  cxd6 {[%clk 0:00:18]} 39. Nxd6 {[%clk 0:00:58]}  Bc3 {[%clk 0:00:17]} 40. Rb7+ {[%clk 0:00:56]}  Ka8 {[%clk 0:00:17]} 41. Bd5 {[%clk 0:00:56]}  Rh8 {[%clk 0:00:14]} 42. Rxb4+ {[%clk 0:00:44]}  Ka7 {[%clk 0:00:14]} 43. Rb7+ {[%clk 0:00:45]}  Ka8 {[%clk 0:00:14]} 1-0


[Site "https://www.chess.com"]

[Event "Titled Tuesday Blitz January 25 2022"]
[White "Pranav, V"]
[Black "Ovetchkin, Roman"]
[WhiteFideId "25060783"]
[BlackFideId "4119991"]
[WhiteElo "2349"]
[BlackElo "2409"]
[Result "0-1"]
[Round "09"]
[TimeControl "180+1"]
[Date "2022.01.26"]
[WhiteClock "0:00:01"]
[BlackClock "0:00:10"]

1. e4 {[%clk 0:03:00]}  c6 {[%clk 0:03:00]} 2. d4 {[%clk 0:03:00]}  d5 {[%clk 0:03:00]} 3. e5 {[%clk 0:03:01]}  Bf5 {[%clk 0:03:00]} 4. Nf3 {[%clk 0:03:02]}  e6 {[%clk 0:03:00]} 5. Be2 {[%clk 0:03:02]}  Nd7 {[%clk 0:02:59]} 6. c3 {[%clk 0:03:02]}  Bg6 {[%clk 0:02:58]} 7. O-O {[%clk 0:03:01]}  Ne7 {[%clk 0:02:57]} 8. Re1 {[%clk 0:03:01]}  c5 {[%clk 0:02:55]} 9. Bg5 {[%clk 0:02:54]}  Qb6 {[%clk 0:02:52]} 10. Na3 {[%clk 0:02:52]}  a6 {[%clk 0:02:32]} 11. dxc5 {[%clk 0:02:42]}  Qxb2 {[%clk 0:02:09]} 12. Qa4 {[%clk 0:02:27]}  Nc6 {[%clk 0:02:08]} 13. Be3 {[%clk 0:01:30]}  Nxc5 {[%clk 0:01:57]} 14. Bxc5 {[%clk 0:01:30]}  Bxc5 {[%clk 0:01:57]} 15. Nb5 {[%clk 0:01:24]}  O-O {[%clk 0:01:56]} 16. Nd6 {[%clk 0:01:24]}  b5 {[%clk 0:01:40]} 17. Qh4 {[%clk 0:01:15]}  Bxd6 {[%clk 0:01:25]} 18. exd6 {[%clk 0:01:08]}  Qa3 {[%clk 0:01:25]} 19. d7 {[%clk 0:00:49]}  Rad8 {[%clk 0:01:20]} 20. Qg3 {[%clk 0:00:32]}  Rxd7 {[%clk 0:01:19]} 21. h4 {[%clk 0:00:33]}  h6 {[%clk 0:01:11]} 22. Nh2 {[%clk 0:00:24]}  Qd6 {[%clk 0:01:06]} 23. Qh3 {[%clk 0:00:21]}  Ne5 {[%clk 0:01:00]} 24. h5 {[%clk 0:00:20]}  Bf5 {[%clk 0:00:58]} 25. Qh4 {[%clk 0:00:19]}  Rc8 {[%clk 0:00:54]} 26. a4 {[%clk 0:00:19]}  Nd3 {[%clk 0:00:44]} 27. Bxd3 {[%clk 0:00:18]}  Bxd3 {[%clk 0:00:44]} 28. axb5 {[%clk 0:00:18]}  Bxb5 {[%clk 0:00:42]} 29. Re3 {[%clk 0:00:17]}  Rc4 {[%clk 0:00:41]} 30. Ng4 {[%clk 0:00:17]}  Qf4 {[%clk 0:00:35]} 31. Rg3 {[%clk 0:00:13]}  Kh7 {[%clk 0:00:33]} 32. Rd1 {[%clk 0:00:10]}  Rdc7 {[%clk 0:00:24]} 33. Qh3 {[%clk 0:00:06]}  d4 {[%clk 0:00:20]} 34. cxd4 {[%clk 0:00:04]}  Rc1 {[%clk 0:00:20]} 35. Rxc1 {[%clk 0:00:04]}  Rxc1+ {[%clk 0:00:20]} 36. Kh2 {[%clk 0:00:05]}  Qxd4 {[%clk 0:00:17]} 37. Qh4 {[%clk 0:00:04]}  Qa1 {[%clk 0:00:16]} 38. Kh3 {[%clk 0:00:03]}  Rh1+ {[%clk 0:00:15]} 39. Nh2 {[%clk 0:00:02]}  Qe5 {[%clk 0:00:13]} 40. Qg4 {[%clk 0:00:01]}  Be2 {[%clk 0:00:11]} 41. Qh4 {[%clk 0:00:01]}  Bd3 {[%clk 0:00:10]} 42. f3 {[%clk 0:00:01]}  Bf5+ {[%clk 0:00:10]} 0-1


[Site "https://www.chess.com"]

[Event "Titled Tuesday Blitz January 25 2022"]
[White "Punin, Andrii"]
[Black "Lavrov, Maxim"]
[WhiteFideId "14112639"]
[BlackFideId "4166418"]
[WhiteElo "2357"]
[BlackElo "2192"]
[Result "1/2-1/2"]
[Round "09"]
[TimeControl "180+1"]
[Date "2022.01.26"]
[WhiteClock "0:01:19"]
[BlackClock "0:00:40"]

1. e4 {[%clk 0:03:00]}  e5 {[%clk 0:02:54]} 2. Nf3 {[%clk 0:03:00]}  Nc6 {[%clk 0:02:54]} 3. Bb5 {[%clk 0:03:00]}  a6 {[%clk 0:02:52]} 4. Ba4 {[%clk 0:03:00]}  Nf6 {[%clk 0:02:52]} 5. O-O {[%clk 0:03:00]}  Be7 {[%clk 0:02:51]} 6. Re1 {[%clk 0:03:00]}  b5 {[%clk 0:02:51]} 7. Bb3 {[%clk 0:03:00]}  O-O {[%clk 0:02:52]} 8. a4 {[%clk 0:03:00]}  Bb7 {[%clk 0:02:51]} 9. d3 {[%clk 0:02:53]}  d5 {[%clk 0:02:48]} 10. exd5 {[%clk 0:02:50]}  Nxd5 {[%clk 0:02:49]} 11. axb5 {[%clk 0:02:49]}  axb5 {[%clk 0:02:48]} 12. Rxa8 {[%clk 0:02:49]}  Bxa8 {[%clk 0:02:49]} 13. Nxe5 {[%clk 0:02:45]}  Nd4 {[%clk 0:02:41]} 14. c3 {[%clk 0:02:33]}  Nxb3 {[%clk 0:02:37]} 15. Qxb3 {[%clk 0:02:34]}  b4 {[%clk 0:02:14]} 16. Nd2 {[%clk 0:02:26]}  bxc3 {[%clk 0:02:05]} 17. bxc3 {[%clk 0:02:27]}  Nf4 {[%clk 0:02:01]} 18. Ndf3 {[%clk 0:02:20]}  Ng6 {[%clk 0:01:33]} 19. Nxg6 {[%clk 0:02:16]}  hxg6 {[%clk 0:01:34]} 20. Qd1 {[%clk 0:02:14]}  Bf6 {[%clk 0:01:30]} 21. d4 {[%clk 0:02:07]}  Qd5 {[%clk 0:01:27]} 22. h3 {[%clk 0:02:00]}  c5 {[%clk 0:01:23]} 23. Bf4 {[%clk 0:01:56]}  cxd4 {[%clk 0:01:21]} 24. cxd4 {[%clk 0:01:55]}  Rd8 {[%clk 0:01:21]} 25. Be5 {[%clk 0:01:50]}  Bxe5 {[%clk 0:01:11]} 26. Rxe5 {[%clk 0:01:49]}  Qd6 {[%clk 0:01:12]} 27. Re1 {[%clk 0:01:29]}  Qf4 {[%clk 0:01:10]} 28. Re3 {[%clk 0:01:22]}  Bxf3 {[%clk 0:00:43]} 29. Qxf3 {[%clk 0:01:19]}  Qxf3 {[%clk 0:00:39]} 30. Rxf3 {[%clk 0:01:19]}  Rxd4 {[%clk 0:00:40]} 31. g3 {[%clk 0:01:19]} 1/2-1/2


[Site "https://www.chess.com"]

[Event "Titled Tuesday Blitz January 25 2022"]
[White "Rustemov, Alexander"]
[Black "Nozdrachev, Leonid"]
[WhiteFideId "4119002"]
[BlackFideId "24113433"]
[WhiteElo "2715"]
[BlackElo "2124"]
[Result "0-1"]
[Round "09"]
[TimeControl "180+1"]
[Date "2022.01.26"]
[WhiteClock "0:00:26"]
[BlackClock "0:00:08"]

1. d4 {[%clk 0:03:00]}  Nf6 {[%clk 0:02:58]} 2. c4 {[%clk 0:03:01]}  e5 {[%clk 0:02:57]} 3. dxe5 {[%clk 0:02:59]}  Ng4 {[%clk 0:02:57]} 4. Bf4 {[%clk 0:03:00]}  Nc6 {[%clk 0:02:56]} 5. Nf3 {[%clk 0:03:00]}  Bb4+ {[%clk 0:02:56]} 6. Nbd2 {[%clk 0:03:01]}  Qe7 {[%clk 0:02:55]} 7. a3 {[%clk 0:03:01]}  Ngxe5 {[%clk 0:02:54]} 8. Nxe5 {[%clk 0:03:01]}  Nxe5 {[%clk 0:02:53]} 9. e3 {[%clk 0:03:02]}  Bd6 {[%clk 0:02:45]} 10. Ne4 {[%clk 0:02:50]}  Nxc4 {[%clk 0:02:36]} 11. Nxd6+ {[%clk 0:02:43]}  Nxd6 {[%clk 0:02:34]} 12. Rc1 {[%clk 0:02:42]}  Qd8 {[%clk 0:02:04]} 13. Bxd6 {[%clk 0:02:40]}  cxd6 {[%clk 0:02:05]} 14. Qxd6 {[%clk 0:02:39]}  Qe7 {[%clk 0:01:56]} 15. Qc7 {[%clk 0:02:33]}  O-O {[%clk 0:01:40]} 16. Be2 {[%clk 0:02:24]}  Qf6 {[%clk 0:01:35]} 17. b4 {[%clk 0:02:19]}  Qb2 {[%clk 0:01:30]} 18. Qc3 {[%clk 0:02:17]}  Qxc3+ {[%clk 0:01:27]} 19. Rxc3 {[%clk 0:02:17]}  d6 {[%clk 0:01:02]} 20. Bf3 {[%clk 0:02:12]}  Rb8 {[%clk 0:00:50]} 21. Rc7 {[%clk 0:02:11]}  a5 {[%clk 0:00:46]} 22. b5 {[%clk 0:02:06]}  b6 {[%clk 0:00:44]} 23. Kd2 {[%clk 0:02:01]}  Be6 {[%clk 0:00:38]} 24. Bb7 {[%clk 0:01:56]}  g5 {[%clk 0:00:31]} 25. Rhc1 {[%clk 0:01:55]}  Kg7 {[%clk 0:00:31]} 26. R1c6 {[%clk 0:01:54]}  Bd5 {[%clk 0:00:28]} 27. Rxb6 {[%clk 0:01:54]}  Bxg2 {[%clk 0:00:27]} 28. Kd3 {[%clk 0:01:34]}  Rfe8 {[%clk 0:00:20]} 29. Kd4 {[%clk 0:01:30]}  h5 {[%clk 0:00:16]} 30. a4 {[%clk 0:01:22]}  h4 {[%clk 0:00:16]} 31. Bxg2 {[%clk 0:01:13]}  Rxb6 {[%clk 0:00:15]} 32. Bd5 {[%clk 0:01:12]}  Rf8 {[%clk 0:00:12]} 33. Bc6 {[%clk 0:01:06]}  Rh8 {[%clk 0:00:08]} 34. Bd5 {[%clk 0:01:02]}  Rf8 {[%clk 0:00:08]} 35. Ra7 {[%clk 0:01:03]}  Kf6 {[%clk 0:00:07]} 36. Rxa5 {[%clk 0:01:02]}  Rc8 {[%clk 0:00:05]} 37. Ra7 {[%clk 0:01:00]}  Rc2 {[%clk 0:00:03]} 38. Rxf7+ {[%clk 0:00:58]}  Kg6 {[%clk 0:00:03]} 39. h3 {[%clk 0:00:52]}  Rd2+ {[%clk 0:00:03]} 40. Kc4 {[%clk 0:00:50]}  Rxd5 {[%clk 0:00:04]} 41. Kxd5 {[%clk 0:00:47]}  Kxf7 {[%clk 0:00:04]} 42. f3 {[%clk 0:00:47]}  Ke7 {[%clk 0:00:04]} 43. Kc4 {[%clk 0:00:48]}  Ke6 {[%clk 0:00:03]} 44. a5 {[%clk 0:00:48]}  Rb8 {[%clk 0:00:03]} 45. b6 {[%clk 0:00:46]}  Kd7 {[%clk 0:00:03]} 46. Kb5 {[%clk 0:00:46]}  Rc8 {[%clk 0:00:02]} 47. a6 {[%clk 0:00:46]}  Rc5+ {[%clk 0:00:02]} 48. Kb4 {[%clk 0:00:47]}  Kc6 {[%clk 0:00:03]} 49. b7 {[%clk 0:00:46]}  Kc7 {[%clk 0:00:01]} 50. e4 {[%clk 0:00:44]}  Kb8 {[%clk 0:00:01]} 51. e5 {[%clk 0:00:26]}  Rxe5 {[%clk 0:00:01]} 52. Kc4 {[%clk 0:00:23]}  Rc5+ {[%clk 0:00:02]} 53. Kd4 {[%clk 0:00:23]}  Re5 {[%clk 0:00:03]} 54. Kc4 {[%clk 0:00:21]}  Rc5+ {[%clk 0:00:04]} 55. Kd4 {[%clk 0:00:22]}  Ka7 {[%clk 0:00:04]} 56. Ke4 {[%clk 0:00:23]}  Rb5 {[%clk 0:00:04]} 57. f4 {[%clk 0:00:24]}  gxf4 {[%clk 0:00:04]} 58. Kxf4 {[%clk 0:00:24]}  Kxa6 {[%clk 0:00:05]} 59. Kg4 {[%clk 0:00:25]}  Rxb7 {[%clk 0:00:05]} 60. Kxh4 {[%clk 0:00:25]}  Re7 {[%clk 0:00:05]} 61. Kg5 {[%clk 0:00:26]}  d5 {[%clk 0:00:06]} 62. Kf6 {[%clk 0:00:26]}  Re3 {[%clk 0:00:06]} 63. h4 {[%clk 0:00:25]}  d4 {[%clk 0:00:06]} 64. h5 {[%clk 0:00:25]}  d3 {[%clk 0:00:07]} 65. h6 {[%clk 0:00:26]}  Rh3 {[%clk 0:00:07]} 66. Kg5 {[%clk 0:00:26]}  Rxh6 {[%clk 0:00:07]} 67. Kxh6 {[%clk 0:00:26]}  d2 {[%clk 0:00:08]} 0-1


[Site "https://www.chess.com"]

[Event "Titled Tuesday Blitz January 25 2022"]
[White "Rychagov, Andrey"]
[Black "Odegov, Artem"]
[WhiteFideId "4119932"]
[BlackFideId "34183644"]
[WhiteElo "2500"]
[BlackElo "2277"]
[Result "1-0"]
[Round "09"]
[TimeControl "180+1"]
[Date "2022.01.26"]
[WhiteClock "0:01:53"]
[BlackClock "0:01:08"]

1. d4 {[%clk 0:03:00]}  Nf6 {[%clk 0:02:58]} 2. c4 {[%clk 0:03:00]}  c5 {[%clk 0:02:59]} 3. d5 {[%clk 0:03:00]}  e6 {[%clk 0:02:59]} 4. Nc3 {[%clk 0:03:00]}  exd5 {[%clk 0:03:00]} 5. cxd5 {[%clk 0:03:00]}  g6 {[%clk 0:03:01]} 6. Nf3 {[%clk 0:02:59]}  Bg7 {[%clk 0:03:01]} 7. Bf4 {[%clk 0:02:58]}  O-O {[%clk 0:03:01]} 8. e3 {[%clk 0:02:57]}  d6 {[%clk 0:03:01]} 9. h3 {[%clk 0:02:56]}  Qe7 {[%clk 0:02:54]} 10. Nd2 {[%clk 0:02:51]}  Nfd7 {[%clk 0:02:16]} 11. Be2 {[%clk 0:02:48]}  a6 {[%clk 0:02:03]} 12. a4 {[%clk 0:02:47]}  b6 {[%clk 0:02:03]} 13. Nc4 {[%clk 0:02:39]}  Ne5 {[%clk 0:01:56]} 14. Nxb6 {[%clk 0:02:35]}  Ra7 {[%clk 0:01:55]} 15. O-O {[%clk 0:02:31]}  Nbd7 {[%clk 0:01:55]} 16. Nxc8 {[%clk 0:02:17]}  Rxc8 {[%clk 0:01:54]} 17. a5 {[%clk 0:02:17]}  Rb8 {[%clk 0:01:53]} 18. Na4 {[%clk 0:02:14]}  g5 {[%clk 0:01:47]} 19. Bg3 {[%clk 0:02:11]}  Ng6 {[%clk 0:01:47]} 20. Qc2 {[%clk 0:02:05]}  Rb4 {[%clk 0:01:45]} 21. Ra2 {[%clk 0:01:58]}  Nde5 {[%clk 0:01:22]} 22. Nb6 {[%clk 0:01:55]}  Nd7 {[%clk 0:01:18]} 23. Nc8 {[%clk 0:01:54]}  Qe4 {[%clk 0:01:08]} 24. Qxe4 {[%clk 0:01:53]} 1-0


[Site "https://www.chess.com"]

[Event "Titled Tuesday Blitz January 25 2022"]
[White "Sadhwani, Raunak"]
[Black "Cunjalo, Faris"]
[WhiteFideId "35093487"]
[BlackFideId "14410710"]
[WhiteElo "2616"]
[BlackElo "2263"]
[Result "1-0"]
[Round "09"]
[TimeControl "180+1"]
[Date "2022.01.26"]
[WhiteClock "0:00:09"]
[BlackClock "0:00:01"]

1. e4 {[%clk 0:03:00]}  c5 {[%clk 0:02:58]} 2. Nf3 {[%clk 0:03:01]}  d6 {[%clk 0:02:58]} 3. Bb5+ {[%clk 0:03:01]}  Nd7 {[%clk 0:02:57]} 4. Ba4 {[%clk 0:02:57]}  Nf6 {[%clk 0:02:56]} 5. O-O {[%clk 0:02:57]}  e6 {[%clk 0:02:55]} 6. Re1 {[%clk 0:02:55]}  Be7 {[%clk 0:02:55]} 7. c4 {[%clk 0:02:55]}  O-O {[%clk 0:02:53]} 8. Nc3 {[%clk 0:02:55]}  a6 {[%clk 0:02:50]} 9. d3 {[%clk 0:02:55]}  b6 {[%clk 0:02:48]} 10. h3 {[%clk 0:02:53]}  Bb7 {[%clk 0:02:48]} 11. a3 {[%clk 0:02:45]}  Qc7 {[%clk 0:02:46]} 12. Bf4 {[%clk 0:02:35]}  Ne5 {[%clk 0:02:40]} 13. Rc1 {[%clk 0:02:35]}  Rfd8 {[%clk 0:02:37]} 14. b4 {[%clk 0:02:33]}  h6 {[%clk 0:02:28]} 15. Bg3 {[%clk 0:02:29]}  Ng6 {[%clk 0:02:24]} 16. d4 {[%clk 0:02:25]}  cxd4 {[%clk 0:02:20]} 17. Nxd4 {[%clk 0:02:23]}  Ne5 {[%clk 0:02:14]} 18. Bb3 {[%clk 0:02:19]}  Rac8 {[%clk 0:02:00]} 19. Qd2 {[%clk 0:01:51]}  Qb8 {[%clk 0:01:57]} 20. Qe2 {[%clk 0:01:51]}  Nc6 {[%clk 0:01:45]} 21. Red1 {[%clk 0:01:44]}  Nxd4 {[%clk 0:01:36]} 22. Rxd4 {[%clk 0:01:45]}  Qa8 {[%clk 0:01:36]} 23. f3 {[%clk 0:01:07]}  Ne8 {[%clk 0:01:10]} 24. Rdd1 {[%clk 0:01:00]}  Bc6 {[%clk 0:01:02]} 25. Nd5 {[%clk 0:00:54]}  exd5 {[%clk 0:00:52]} 26. exd5 {[%clk 0:00:54]}  Bg5 {[%clk 0:00:52]} 27. f4 {[%clk 0:00:55]}  Bf6 {[%clk 0:00:41]} 28. dxc6 {[%clk 0:00:54]}  Qxc6 {[%clk 0:00:42]} 29. Qh5 {[%clk 0:00:49]}  Nc7 {[%clk 0:00:37]} 30. c5 {[%clk 0:00:40]}  d5 {[%clk 0:00:33]} 31. cxb6 {[%clk 0:00:32]}  Qxb6+ {[%clk 0:00:34]} 32. Bf2 {[%clk 0:00:32]}  Qd6 {[%clk 0:00:28]} 33. g3 {[%clk 0:00:26]}  Qd7 {[%clk 0:00:22]} 34. Qg4 {[%clk 0:00:24]}  Qxg4 {[%clk 0:00:17]} 35. hxg4 {[%clk 0:00:25]}  Nb5 {[%clk 0:00:11]} 36. Rxc8 {[%clk 0:00:20]}  Rxc8 {[%clk 0:00:12]} 37. Bc5 {[%clk 0:00:16]}  d4 {[%clk 0:00:03]} 38. Rf1 {[%clk 0:00:14]}  Nxa3 {[%clk 0:00:03]} 39. Ra1 {[%clk 0:00:12]}  Nb5 {[%clk 0:00:02]} 40. Rxa6 {[%clk 0:00:12]}  d3 {[%clk 0:00:01]} 41. Kf1 {[%clk 0:00:06]}  Rd8 {[%clk 0:00:01]} 42. Rb6 {[%clk 0:00:04]}  d2 {[%clk 0:00:01]} 43. Rxb5 {[%clk 0:00:04]}  d1=Q+ {[%clk 0:00:02]} 44. Bxd1 {[%clk 0:00:05]}  Rxd1+ {[%clk 0:00:03]} 45. Ke2 {[%clk 0:00:06]}  Rb1 {[%clk 0:00:03]} 46. Rb8+ {[%clk 0:00:06]}  Kh7 {[%clk 0:00:04]} 47. Rb7 {[%clk 0:00:07]}  Kg6 {[%clk 0:00:03]} 48. b5 {[%clk 0:00:07]}  Rb3 {[%clk 0:00:03]} 49. Be3 {[%clk 0:00:07]}  Rb2+ {[%clk 0:00:01]} 50. Kf3 {[%clk 0:00:07]}  Rb3 {[%clk 0:00:02]} 51. f5+ {[%clk 0:00:07]}  Kh7 {[%clk 0:00:02]} 52. Ke4 {[%clk 0:00:08]}  Rb4+ {[%clk 0:00:02]} 53. Kd5 {[%clk 0:00:09]}  Rb3 {[%clk 0:00:02]} 54. Bf4 {[%clk 0:00:09]}  Kg8 {[%clk 0:00:01]} 55. b6 {[%clk 0:00:09]} 1-0


[Site "https://www.chess.com"]

[Event "Titled Tuesday Blitz January 25 2022"]
[White "Sadovsky, Artem"]
[Black "FGHSMN"]
[WhiteFideId "4155840"]
[WhiteElo "2369"]
[BlackElo "2715"]
[Result "0-1"]
[Round "09"]
[TimeControl "180+1"]
[Date "2022.01.26"]
[WhiteClock "0:00:01"]
[BlackClock "0:01:02"]

1. Nf3 {[%clk 0:03:00]}  d5 {[%clk 0:02:59]} 2. e3 {[%clk 0:03:00]}  Nf6 {[%clk 0:02:57]} 3. c4 {[%clk 0:03:00]}  c6 {[%clk 0:02:53]} 4. b3 {[%clk 0:03:00]}  e6 {[%clk 0:02:52]} 5. Bb2 {[%clk 0:03:00]}  Bd6 {[%clk 0:02:52]} 6. d4 {[%clk 0:02:58]}  Nbd7 {[%clk 0:02:51]} 7. Bd3 {[%clk 0:02:58]}  Qe7 {[%clk 0:02:43]} 8. Nbd2 {[%clk 0:02:44]}  O-O {[%clk 0:02:41]} 9. Ne5 {[%clk 0:02:41]}  Ba3 {[%clk 0:02:28]} 10. Bxa3 {[%clk 0:02:23]}  Qxa3 {[%clk 0:02:27]} 11. f4 {[%clk 0:02:24]}  dxc4 {[%clk 0:02:14]} 12. Ndxc4 {[%clk 0:02:18]}  Qe7 {[%clk 0:02:14]} 13. O-O {[%clk 0:02:13]}  Nd5 {[%clk 0:02:07]} 14. Rf3 {[%clk 0:02:02]}  N7f6 {[%clk 0:01:52]} 15. g4 {[%clk 0:01:53]}  g6 {[%clk 0:01:43]} 16. Rh3 {[%clk 0:01:43]}  c5 {[%clk 0:01:25]} 17. g5 {[%clk 0:01:35]}  Ne8 {[%clk 0:01:22]} 18. dxc5 {[%clk 0:00:41]}  Qxc5 {[%clk 0:01:16]} 19. Rc1 {[%clk 0:00:28]}  Nxf4 {[%clk 0:01:13]} 20. Rh4 {[%clk 0:00:12]}  Nxd3 {[%clk 0:01:11]} 21. Nxd3 {[%clk 0:00:09]}  Qxg5+ {[%clk 0:01:10]} 22. Rg4 {[%clk 0:00:08]}  Qe7 {[%clk 0:01:10]} 23. Nf4 {[%clk 0:00:05]}  Ng7 {[%clk 0:01:04]} 24. Rg2 {[%clk 0:00:02]}  Rd8 {[%clk 0:01:03]} 25. Qg4 {[%clk 0:00:01]}  e5 {[%clk 0:01:02]} 26. Qh4 {[%clk 0:00:01]}  Qxh4 {[%clk 0:01:02]} 0-1


[Site "https://www.chess.com"]

[Event "Titled Tuesday Blitz January 25 2022"]
[White "Sadykov, Ramil"]
[Black "Kislinsky, Alexey"]
[WhiteFideId "24113590"]
[BlackFideId "14108801"]
[WhiteElo "2300"]
[BlackElo "2335"]
[Result "0-1"]
[Round "09"]
[TimeControl "180+1"]
[Date "2022.01.26"]
[WhiteClock "0:00:01"]
[BlackClock "0:00:16"]

1. e4 {[%clk 0:02:38]}  g6 {[%clk 0:03:00]} 2. Nc3 {[%clk 0:02:37]}  c5 {[%clk 0:02:59]} 3. g3 {[%clk 0:02:35]}  Bg7 {[%clk 0:02:53]} 4. Bg2 {[%clk 0:02:33]}  Nc6 {[%clk 0:02:52]} 5. d3 {[%clk 0:02:34]}  Rb8 {[%clk 0:02:52]} 6. Be3 {[%clk 0:02:34]}  b5 {[%clk 0:02:51]} 7. Qd2 {[%clk 0:02:32]}  b4 {[%clk 0:02:48]} 8. Nd1 {[%clk 0:02:33]}  d6 {[%clk 0:02:39]} 9. Ne2 {[%clk 0:02:31]}  Nd4 {[%clk 0:02:29]} 10. Nc1 {[%clk 0:02:29]}  h5 {[%clk 0:02:19]} 11. c3 {[%clk 0:02:27]}  bxc3 {[%clk 0:02:16]} 12. bxc3 {[%clk 0:02:28]}  Nc6 {[%clk 0:01:57]} 13. h3 {[%clk 0:02:28]}  Bd7 {[%clk 0:01:49]} 14. O-O {[%clk 0:02:28]}  Qc8 {[%clk 0:01:47]} 15. Kh2 {[%clk 0:02:27]}  Nf6 {[%clk 0:01:46]} 16. f4 {[%clk 0:02:24]}  h4 {[%clk 0:01:45]} 17. g4 {[%clk 0:02:17]}  Bxg4 {[%clk 0:01:44]} 18. hxg4 {[%clk 0:02:16]}  Nxg4+ {[%clk 0:01:44]} 19. Kh1 {[%clk 0:02:14]}  h3 {[%clk 0:01:43]} 20. Bf3 {[%clk 0:02:12]}  Nxe3 {[%clk 0:01:36]} 21. Nxe3 {[%clk 0:02:13]}  e6 {[%clk 0:01:37]} 22. Ne2 {[%clk 0:02:10]}  Qa6 {[%clk 0:01:36]} 23. Rab1 {[%clk 0:02:04]}  O-O {[%clk 0:01:33]} 24. Nc4 {[%clk 0:01:56]}  Na5 {[%clk 0:01:30]} 25. Nxa5 {[%clk 0:01:49]}  Qxa5 {[%clk 0:01:31]} 26. Kh2 {[%clk 0:01:46]}  Rb6 {[%clk 0:01:21]} 27. Kxh3 {[%clk 0:01:41]}  Rfb8 {[%clk 0:01:18]} 28. Qc2 {[%clk 0:01:41]}  Qa3 {[%clk 0:01:13]} 29. Rxb6 {[%clk 0:01:34]}  Rxb6 {[%clk 0:01:14]} 30. Rb1 {[%clk 0:01:34]}  Rxb1 {[%clk 0:01:09]} 31. Qxb1 {[%clk 0:01:35]}  Bxc3 {[%clk 0:01:08]} 32. Qb8+ {[%clk 0:01:21]}  Kg7 {[%clk 0:01:08]} 33. Qxd6 {[%clk 0:01:11]}  Bb2 {[%clk 0:00:55]} 34. f5 {[%clk 0:01:07]}  gxf5 {[%clk 0:00:53]} 35. exf5 {[%clk 0:01:08]}  exf5 {[%clk 0:00:53]} 36. Nf4 {[%clk 0:01:03]}  Qc3 {[%clk 0:00:44]} 37. Nh5+ {[%clk 0:00:56]}  Kh7 {[%clk 0:00:43]} 38. Qd5 {[%clk 0:00:51]}  Kg6 {[%clk 0:00:38]} 39. Nf4+ {[%clk 0:00:42]}  Kg5 {[%clk 0:00:38]} 40. Ng2 {[%clk 0:00:23]}  Qh8+ {[%clk 0:00:30]} 41. Kg3 {[%clk 0:00:24]}  Be5+ {[%clk 0:00:30]} 42. Kf2 {[%clk 0:00:23]}  Bd4+ {[%clk 0:00:30]} 43. Ke2 {[%clk 0:00:21]}  Qb8 {[%clk 0:00:27]} 44. Qb3 {[%clk 0:00:14]}  Qe5+ {[%clk 0:00:25]} 45. Kd1 {[%clk 0:00:13]}  Qg3 {[%clk 0:00:25]} 46. Ne1 {[%clk 0:00:09]}  Bf2 {[%clk 0:00:22]} 47. Qxf7 {[%clk 0:00:05]}  Bxe1 {[%clk 0:00:22]} 48. Qg7+ {[%clk 0:00:05]}  Kf4 {[%clk 0:00:22]} 49. Qxg3+ {[%clk 0:00:03]}  Bxg3 {[%clk 0:00:23]} 50. Bd5 {[%clk 0:00:03]}  Ke3 {[%clk 0:00:23]} 51. Be6 {[%clk 0:00:02]}  f4 {[%clk 0:00:22]} 52. Bg4 {[%clk 0:00:01]}  f3 {[%clk 0:00:22]} 53. Bh3 {[%clk 0:00:02]}  Kxd3 {[%clk 0:00:21]} 54. Bf1+ {[%clk 0:00:02]}  Kc3 {[%clk 0:00:19]} 55. Bb5 {[%clk 0:00:03]}  Bf4 {[%clk 0:00:17]} 56. Bc6 {[%clk 0:00:03]}  f2 {[%clk 0:00:17]} 57. Ke2 {[%clk 0:00:04]}  Be3 {[%clk 0:00:18]} 58. Bg2 {[%clk 0:00:02]}  Bd4 {[%clk 0:00:19]} 59. Bf1 {[%clk 0:00:02]}  a5 {[%clk 0:00:19]} 60. Kd1 {[%clk 0:00:02]}  Kb2 {[%clk 0:00:17]} 61. a4 {[%clk 0:00:02]}  Kb3 {[%clk 0:00:16]} 62. Bb5 {[%clk 0:00:02]}  c4 {[%clk 0:00:16]} 63. Ke2 {[%clk 0:00:02]}  c3 {[%clk 0:00:16]} 64. Bc6 {[%clk 0:00:02]}  c2 {[%clk 0:00:15]} 65. Bd5+ {[%clk 0:00:01]}  Kb2 {[%clk 0:00:16]} 0-1


[Site "https://www.chess.com"]